Cogmind - Beta 10.2 @@@ ROGUE MODE // 2021.05.01 @ 23:34:40 Player: sentrybuster Result: Destroyed by G-47 Trooper with Particle Gun Performance ------------- Evolutions (2) 1000 Regions Visited (3) 600 Robots Destroyed (37) 185 Value Destroyed (1122) 1122 Prototype IDs (2) 40 Alien Tech Used (0) 0 Bonus (89) 89 TOTAL SCORE: 3036 Bonus ------- High Alert Combat Kills 89 Cogmind --------- Core Integrity 0/550 Matter 300/300 Energy 100/100 System Corruption 0% Temperature Cool (9) Movement Core (200) Ox3 Location -8/Materials Parts ------- > --- POWER (1) -------- (None) > --- PROPULSION (3) --- (None) > --- UTILITY (4) ------ Medium Storage Unit Terrain Scan Processor Terrain Scan Processor > --- WEAPON (3) ------- Katana > --- INVENTORY (8) ---- Improved Terrain Scanner EM Pulse Cannon Katana Peak State ------------ > --- POWER ------------ Improved Ion Engine > --- PROPULSION ------- Improved Aluminum Leg Improved Aluminum Leg Improved Aluminum Leg > --- UTILITY ---------- Medium Storage Unit Improved Terrain Scanner Terrain Scan Processor Terrain Scan Processor > --- WEAPON ----------- EM Pulse Cannon EM Pulse Cannon Scythe > --- INVENTORY -------- Improved Ion Engine Light Treads Light Treads Heat Sink EM Shotgun EM Pulse Cannon EM Pulse Cannon Katana [Rating: 25] Favorites ----------- Power Improved Ion Engine Engine Improved Ion Engine Propulsion Aluminum Leg Treads Light Treads Leg Aluminum Leg Utility Improved Terrain Scanner Device Improved Terrain Scanner Storage Small Storage Unit Processor Terrain Scan Processor Protection Hardened Medium Armor Plating Weapon EM Pulse Cannon Energy Gun Medium Laser Energy Cannon EM Pulse Cannon Ballistic Gun Assault Rifle Slashing Weapon Katana Build | -11 -10 -9 -8 ------- Run | Scr Mat Mat Mat Slots Evolved 4 | . . 2 2 Power . | . . . . Propulsion 1 | . . . 1 Utility 2 | . . 1 1 Weapon 1 | . . 1 . Parts Attached 35 | 6 2 13 14 Power 3 | 1 . 1 1 Engine 3 | 1 . 1 1 Core . | . . . . Reactor . | . . . . Propulsion 11 | 2 . 3 6 Treads 2 | . . . 2 Leg 9 | 2 . 3 4 Wheel . | . . . . Hover . | . . . . Flight . | . . . . Utility 8 | 1 . 5 2 Device 3 | . . 3 . Storage 2 | 1 . 1 . Processor 2 | . . 1 1 Hackware . | . . . . Protection 1 | . . . 1 Artifact . | . . . . Weapon 13 | 2 2 4 5 Energy Gun 2 | . 1 . 1 Energy Cannon 4 | . . 2 2 Ballistic Gun 4 | 2 1 1 . Ballistic Cannon . | . . . . Launcher . | . . . . Special Weapon . | . . . . Impact Weapon . | . . . . Slashing Weapon 3 | . . 1 2 Piercing Weapon . | . . . . Special Melee Weapon . | . . . . Unidentified Prototypes . | . . . . Parts Lost 16 | . 1 2 13 Power 2 | . . . 2 Propulsion 6 | . . 1 5 Utility 1 | . . . 1 Weapon 7 | . 1 1 5 Highest Loss Streak 11 | . 1 2 11 Average Slot Usage (%) 89 | . 83 93 81 Engine 10 | . 14 11 5 Leg 22 | . 28 21 18 Device 12 | . . 18 5 Storage 11 | . 14 11 9 Processor 4 | . . 1 18 Energy Cannon 15 | . . 21 8 Ballistic Gun 5 | . 24 2 . Slashing Weapon 5 | . . 5 9 Naked Turns . | . . . . Heaviest Build 31 | 12 12 31 30 Greatest Support 40 | 20 20 20 40 Greatest Overweight (x) 3 | . . 2 3 Average Overweight (x) . | . . . . Largest Inventory Capacity 8 | 6 6 8 8 Average Capacity 6 | 5 6 6 8 Most Carried 8 | 5 5 8 8 Average Carried 5 | 4 4 6 5 Final Capacity 8 | 6 6 8 8 Final Carried 8 | 5 5 8 3 Class Distribution -------------------- 82% | Mutant 15% | Scavenger-Mutant Dominant Class ---------------- Mutant | -10/Materials Mutant | -9/Materials Mutant | -8/Materials Resources | -11 -10 -9 -8 ----------- Run | Scr Mat Mat Mat Matter Collected 704 | 201 27 356 120 Remotely . | . . . . Salvage Created 1447 | 108 93 583 663 Parts 84 | 10 7 39 28 Haulers Intercepted 3 | . . 2 1 Recyclers Shooed 1 | . 1 . . Parts Field Recycled . | . . . . Retrieved Matter . | . . . . Parts Self-Destructed . | . . . . Prevented . | . . . . Kills | -11 -10 -9 -8 ------- Run | Scr Mat Mat Mat Combat Hostiles Destroyed 22 | . 4 7 11 Melee 7 | . . 1 6 Guns 5 | . 4 . 1 Cannons 5 | . . 4 1 AOE 2 | . . 1 1 Classes Destroyed 10 | 1 2 6 1 Worker 2 | . . 2 . Tunneler 4 | 4 . . . Hauler 3 | . . 2 1 Mechanic 1 | . . 1 . Operator 2 | . . 2 . Watcher 3 | . . 2 1 Swarmer 3 | . 3 . . Grunt 12 | . 1 4 7 Duelist 2 | . . . 2 Sentry 5 | . . 3 2 Best Kill Streak 6 | 2 3 3 6 Combat Bots Only 4 | . 3 2 4 Max Kills in Single Turn 1 | 1 1 1 1 Gunslinging . | . . . . Exploded 1 | . . 1 1 Melee 1 | . . 1 1 Uniques/NPCs Destroyed . | . . . . Combat | -11 -10 -9 -8 -------- Run | Scr Mat Mat Mat Damage Taken 2597 | . 267 356 1974 Core 637 | . 43 37 557 Absorbed by Shields . | . . . . Core Remaining (%) 90 | 100 82 90 . Volleys Fired 108 | 13 32 42 21 Largest 2 | 2 2 2 2 Hottest 126 | 40 70 126 126 Shots Fired 178 | 26 49 75 28 Gun 94 | 26 49 10 9 Cannon 84 | . . 65 19 Launcher . | . . . . Special . | . . . . Kinetic 79 | 26 43 10 . Thermal 6 | . 6 . . Explosive . | . . . . Electromagnetic 93 | . . 65 28 Robot Hit Streak 8 | 4 7 7 8 Robot Miss Streak 9 | 3 3 9 1 Penetration Max . | . . . . Secondary Targets . | . . . . Shots Hit Robots 141 | 13 32 44 52 Core Hits 55 | 7 10 17 21 Critical Hits 2 | . . . 2 Critical Kills 1 | . . . 1 Critical Parts Destroyed 1 | . . . 1 Melee Attacks 47 | . . 7 40 Impact . | . . . . Slashing 47 | . . 7 40 Piercing . | . . . . Sneak Attacks 1 | . . 1 . Combat Hostiles . | . . . . Follow-up Attacks . | . . . . Damage Inflicted 3046 | 96 359 1101 1490 Guns 669 | 96 359 87 127 Cannons 1163 | . . 800 363 Explosions 239 | . . 97 142 Melee 975 | . . 117 858 Ramming . | . . . . Kinetic 491 | 96 308 87 . Thermal 290 | . 51 97 142 Explosive . | . . . . Electromagnetic 1290 | . . 800 490 Impact . | . . . . Slashing 975 | . . 117 858 Piercing . | . . . . Highest Corruption 1 | . 1 . . Average Corruption 1 | . 1 . . Corruption Purged . | . . . . Overload Shots . | . . . . Overflow Damage 102 | . . 4 98 Projectiles 18 | . . 4 14 Explosions 56 | . . . 56 Melee 28 | . . . 28 Knockbacks . | . . . . Impact . | . . . . Kinetic . | . . . . Secondary . | . . . . Self-Inflicted Damage 47 | . . . 47 Shots 1 | . . . 1 Rammed 1 | . . . 1 Targets Rammed 1 | . . . 1 Kicked . | . . . . Crushed . | . . . . Highest Temperature 153 | . 108 132 153 Average Temperature 47 | . 53 44 52 Received Heat Transfer 1050 | . 99 150 801 Siege Activations . | . . . . Robots Corrupted 2 | . . 1 1 Combat Hostiles 2 | . . 1 1 Parts Fried 14 | . . 9 5 Impact Corruptions . | . . . . Robots Melted 1 | . . . 1 Combat Hostiles 1 | . . . 1 Parts Melted 1 | . 1 . . Heat Transferred 398 | . 148 150 100 Parts Sabotaged . | . . . . Parts Stolen . | . . . . Parts Stripped . | . . . . Power Chain Reactions 4 | . . 2 2 Missiles Intercepted . | . . . . Alert | -11 -10 -9 -8 ------- Run | Scr Mat Mat Mat Peak Influence 717 | 20 208 239 717 Initial 87 | . 13 87 35 Average 130 | 11 103 88 371 Maximum Alert Level 3 | . 1 1 3 Low Security (%) 81 | 100 85 90 34 Level 1 10 | . 14 9 17 Level 2 7 | . . . 42 Level 3 . | . . . 5 Level 4 . | . . . . Level 5 . | . . . . High Security . | . . . . Max Security . | . . . . Squads Dispatched 7 | . . 4 3 Investigation 1 | . . 1 . Extermination . | . . . . Reinforcement 4 | . . 3 1 Assault 1 | . . . 1 Garrison 1 | . . . 1 Intercept . | . . . . Construction Impeded . | . . . . Haulers Reinforced . | . . . . Stealth | -11 -10 -9 -8 --------- Run | Scr Mat Mat Mat Distress Signals 5 | . 1 2 2 Communications Jammed . | . . . . Distress Signals . | . . . . Times Spotted 56 | . 12 19 25 Peak Tracking Total 9 | . 4 3 9 Tactical Retreats 7 | . 4 1 2 Traps | -11 -10 -9 -8 ------- Run | Scr Mat Mat Mat Traps Triggered 3 | . 1 2 . Indirectly . | . . . . Trap Hack Attempts . | . . . . Triggered . | . . . . Disarmed . | . . . . Reprogrammed . | . . . . Reused . | . . . . Traps Extracted . | . . . . Installed . | . . . . Triggered . | . . . . Machines | -11 -10 -9 -8 ---------- Run | Scr Mat Mat Mat Machines Disabled 3 | . . 1 2 Max in Single Turn 1 | . . 1 1 Garrison Access 1 | . . . 1 Machines Sabotaged . | . . . . Garrisons Compromised . | . . . . Overloaded Fab Kills . | . . . . Fab Network Shutdowns . | . . . . Hacking | -11 -10 -9 -8 --------- Run | Scr Mat Mat Mat Machines Accessed 4 | . 1 3 . Terminals 3 | . 1 2 . Fabricators . | . . . . Repair Stations . | . . . . Recycling Units 1 | . . 1 . Scanalyzers . | . . . . Garrison Access . | . . . . Total Hacks 8 | . 2 6 . Successful 4 | . 1 3 . Failed 4 | . 1 3 . Catastrophic 1 | . . 1 . Database Lockouts . | . . . . Manual 4 | . 2 2 . Terminals 7 | . 2 5 . Fabricators . | . . . . Repair Stations . | . . . . Recycling Units 1 | . . 1 . Scanalyzers . | . . . . Garrison Access . | . . . . Terminal Hacks 2 | . . 2 . Prototype ID Bank 1 | . . 1 . Unreport Threat 1 | . . 1 . Fabricator Hacks . | . . . . Repair Station Hacks . | . . . . Recycling Unit Hacks . | . . . . Scanalyzer . | . . . . Garrison Access Hacks . | . . . . Unauthorized Hacks 2 | . 1 1 . Terminals 2 | . 1 1 . Track 2 | . 1 1 . Fabricators . | . . . . Repair Stations . | . . . . Recycling Units . | . . . . Scanalyzers . | . . . . Garrison Access . | . . . . Data Cores Recovered . | . . . . Used . | . . . . Hacking Detections 4 | . 1 3 . Full Trace Events . | . . . . Feedback Events . | . . . . Feedback Blocked . | . . . . Robot Schematics Acquired . | . . . . Robots Built . | . . . . Matter . | . . . . Time . | . . . . Total Robot Build Rating . | . . . . Part Schematics Acquired . | . . . . Parts Built . | . . . . Matter . | . . . . Time . | . . . . Total Part Build Rating . | . . . . Parts Repaired . | . . . . Time . | . . . . Parts Recycled . | . . . . Recycled Matter . | . . . . Retrieved Matter . | . . . . Retrieved Components . | . . . . Parts Scanalyzed . | . . . . Part Schematics Acquired . | . . . . Parts Damaged . | . . . . Bothacking | -11 -10 -9 -8 ------------ Run | Scr Mat Mat Mat Used RIF Installer . | . . . . Robots Hacked . | . . . . Non-combat . | . . . . Combat . | . . . . Robot Hacks Applied . | . . . . Relay Couplers Released . | . . . . Robots Rewired . | . . . . Allies Hacked . | . . . . Hacks Repelled . | . . . . Allies | -11 -10 -9 -8 -------- Run | Scr Mat Mat Mat Total Allies . | . . . . Largest Group . | . . . . Highest-Rated Group . | . . . . Highest-Rated Ally . | . . . . Total Orders . | . . . . Ally Attacks . | . . . . Total Damage . | . . . . Kills . | . . . . Allies Corrupted . | . . . . Allies Melted . | . . . . Intel | -11 -10 -9 -8 ------- Run | Scr Mat Mat Mat Robot Analysis Total . | . . . . Derelict Logs Recovered . | . . . . Drone Launches . | . . . . Drone Recoveries . | . . . . Exploration | -11 -10 -9 -8 ------------- Run | Scr Mat Mat Mat Turns Passed 1938 | 199 286 1125 328 Spaces Moved 876 | 87 137 541 111 Core 5 | 4 . . 1 Treads 16 | . . . 16 Legs 855 | 83 137 541 94 Wheels . | . . . . Hover . | . . . . Flight . | . . . . Fastest Speed 50 | 50 120 120 120 Average Speed 138 | 116 120 149 126 Slowest Speed 200 | 120 120 180 200 Overloaded Moves . | . . . . Propulsion Burnouts . | . . . . Robots Hopped . | . . . . Cave-ins Triggered . | . . . . Exploration Rate (%) 20 | 5 24 36 18 Regions Visited 3 Branch Regions . Pre-discovered Areas . | . . . . Known Exits Taken . | . . . . Unknown Exits Taken 3 | 1 1 1 . Scrap Searched . | . . . . Spaces Dug 1 | . . 1 . Terrain Destroyed 14 | . . 7 7 Melee 1 | . . 1 . Projectile . | . . . . AOE 13 | . . 6 7 Terrain Rammed . | . . . . Walls Destroyed . | . . . . Machines Disabled . | . . . . Actions | -11 -10 -9 -8 --------- Run | Scr Mat Mat Mat Total 1356 | 158 212 773 213 Wait 259 | 48 39 153 19 Move 873 | 86 136 540 111 Hop . | . . . . Pick Up 15 | 5 2 6 2 Fast Attach 16 | 6 . 8 2 Attach 14 | . 1 4 9 Detach 7 | . . 5 2 Swap 5 | . 1 1 3 Drop 12 | . 1 7 4 Fire 108 | 13 32 42 21 Melee 46 | . . 7 39 Ram . | . . . . Kick 1 | . . . 1 Crush . | . . . . Escape Stasis . | . . . . Rewire . | . . . . Trap . | . . . . Miscellaneous . | . . . . Route ------- -11/Scrapyard -10/Materials (discovered 2 exits: *Mat / [*Min]) -9/Materials -8/Materials History --------- Turn | Location | Event 9 | -11/Scrapyard | Discovered new exit (range 16) 200 | -11/Scrapyard | Entered Materials 200 | -10/Materials | Discovered new exit (range 14) 316 | -10/Materials | Build established: Mutant 474 | -10/Materials | Discovered new exit (range 11) 486 | -10/Materials | Entered another Materials area 486 | -9/Materials | Evolved 2 slots: Utility x1, Weapon x1 1315 | -9/Materials | Discovered new exit (range 10) 1611 | -9/Materials | Entered another Materials area 1611 | -8/Materials | Evolved 2 slots: Propulsion x1, Utility x1 1707 | -8/Materials | Garrison activated, responded to threat 1876 | -8/Materials | Core integrity fell below 50% 1908 | -8/Materials | Lost 11 parts (2p4n1u4w) 1913 | -8/Materials | Core integrity fell below 20% 1939 | -8/Materials | Destroyed by G-47 Trooper with Particle Gun Last Messages --------------- 01856_ Core Shielding fried. 01856_ L-31 Rogue destroyed. 01856_ K-01 Serf collects debris. 01857_ Acquired 3 matter. 01860_ W-25 Informer suffers critical hit. 01860_ W-25 Informer destroyed. 01861_ K-01 Serf collects debris. 01877_ L-31 Rogue Imp. Aluminum Leg severed. 01877_ Lgt. Treads destroyed. 01877_ Hrd. Medium Armor Plating destroyed. 01879_ L-31 Rogue destroyed. 01898_ Y-45 Defender suffers critical hit. 01898_ Destroyed Lgt. Treads. 01903_ Acquired Katana. 01910_ Destroyed Beam Rifle. 01912_ Y-45 Defender destroyed. 01923_ Acquired 10 matter. 01924_ Lgt. Treads destroyed. 01926_ Scythe destroyed. 01928_ K-01 Serf collects debris. Map ----- +----------------------------------------------------+ | ??????????????????????????????????????? | | ??????????????????????????????????????? | | ??????????????????????????????????????? | | ??????????????????????????????????????? | | ??????????????????????????????????????? | | ??????????????????????????????????????? | | ??????????????????????????????????????? | | ??????????????????????????????????????? | | ??????????????????????????????????????? | | ??????????????????????????????????????? | | ??????????????????????????????????????? | | ???????????????????????###+####???##??? | | ??????????????????????? #### ?#?? | | ??????????????????????? #! ??# | | ??????????????????????? # ""?# | | ?????????????????? ??? # G" # | | ???????????????????????? # """ # | | ?????????????????? ?? ?# # ?? | | ????????????????????##### # "" # | | ??????????????? ? ? #w # """ # | | ??????????????????????? + # """ # | | ?????????????????"????? # +" # | | ????????????????""?"? ? # k #%" """ # | | ???????????????? ?? # #" """ # | | ?????????????###??##???## =*!=#= """ # | | ????????????#???#########@!%=[#*[ # | | ????????? + !*gk !%%/g! """ # | | ??????????? #?#######=#######=% """ # | | ????????????????#?#??##%#######[/ % # | | ?????????????????###### #####?# %%* # | | ?????????? ? ???####### ###########+### | | ???????????? ??###?#### ######### =% # | | ?????????? ?????#?## # # | | ?????????#?#????#?## # # | | ??????#???##?#????## # # | | ??????????#??####### +! ^ # | | ????????##?#??###??#/// # ^ # | | ???????? ??##???###// # # | | ????????"?##?#????##/ ==#^ ^ # | | ????????Y?????#?#### = # # | | ????????? ??########[= ###### | | ??????????+ ![%[ ##?##? | | ??????? ????######[[[ ###"Y"## ####?# | | ????????? ##?####### # ###"""## ####?? | | ??????? ? ### ][ + ######## ###?## | | ???????????## ][ ## ##?##### #?###? | | ???????#?##?# ]! ## ######?# ###### | | ???????????## ! ## #######? #####? | | ?????????#??# ## ###?#### ####?# | | ???????? ? ?# """ ## #?#?###? #?#?#? | +----------------------------------------------------+ Best States ------------- Heat Dissipation 38 Energy Generation 12 Energy Capacity 265 Matter Stores 300 Matter Capacity 300 Sight Range 16 Terrain Scan Range 16 Terrain Scan Density 160 Armor Coverage 225 Evasion (%) 40 Recoil Reduction 2 Item Schematics ----------------- None Robot Schematics ------------------ None Fabricated ------------ Nothing Alien Tech Used ----------------- None Achievements -------------- None Challenges ------------ None Game ------ Seed InsulatedArmoredCutter Manual? 0 Play Time 00:22:13 Cumulative 195.9 hours Start 2021.05.01 @ 22:39:23 End 2021.05.01 @ 23:34:40 Sessions 1 Manual Loads 0 Difficulty Rogue Special Mode None Game No. 300 Rogue 296 Adventurer 0 Explorer 4 Win Type - Total 2 Types 2/0/0/0/0/0/0/0/0 Lore% 69 Gallery% 80 Achievement% 53 Wizard Run 0 Options --------- ASCII 1 Keyboard 1 Movement Numpad Keybinds 0 Fullscreen 1 Font 18/X11 Map View 76x50 Tactical HUD 1 Map Filters NONE Filters NONE Steam 1 RUN: 9861d3bb-cfc0-4c2d-92fe-6103f6dec1cb